fUSD/lending_fUSD_20260703
["ID","MTS","AMOUNT","RATE_DAILY","PERIOD"]
[426948209,1783049439000,-151.0,0.000267,2]
[426948182,1783049439000,-500.0,0.0002659,2]
[426948183,1783049439000,-500.0,0.0002659,2]
[426948185,1783049439000,-500.0,0.0002659,2]
[426948184,1783049439000,-500.0,0.0002659,2]
[426948186,1783049439000,-500.0,0.0002659,2]
[426948189,1783049439000,-500.0,0.0002659,2]
[426948188,1783049439000,-500.0,0.0002659,2]
[426948187,1783049439000,-500.0,0.0002659,2]
[426948191,1783049439000,-500.0,0.0002659,2]
[426948192,1783049439000,-500.0,0.0002659,2]
[426948193,1783049439000,-500.0,0.0002659,2]
[426948190,1783049439000,-500.0,0.0002659,2]
[426948208,1783049439000,-32701.7697,0.000267,2]
[426948194,1783049439000,-500.0,0.0002659,2]
[426948197,1783049439000,-24259.78,0.00026591,2]
[426948196,1783049439000,-2993.27,0.00026591,2]
[426948198,1783049439000,-158.042109,0.00026592,2]
[426948199,1783049439000,-158.450641,0.00026592,2]
[426948201,1783049439000,-500.0,0.00026599,2]
[426948200,1783049439000,-500.0,0.00026599,2]
[426948202,1783049439000,-154.85485894,0.00026623,2]
[426948206,1783049439000,-242.0,0.000267,2]
[426948203,1783049439000,-243.8114247,0.00026623,2]
[426948204,1783049439000,-1222.8,0.00026697,2]
[426948205,1783049439000,-500.0,0.00026699,2]
[426948207,1783049439000,-2000.0,0.000267,2]
[426948195,1783049439000,-500.0,0.0002659,2]
[426948238,1783049439000,-500.0,0.00026799,2]
[426948278,1783049439000,-500.0,0.00026799,2]
[426948242,1783049439000,-500.0,0.00026799,2]
[426948276,1783049439000,-500.0,0.00026799,2]
[426948297,1783049439000,-368.31719129,0.00026799,2]
[426948271,1783049439000,-500.0,0.00026799,2]
[426948274,1783049439000,-500.0,0.00026799,2]
[426948275,1783049439000,-500.0,0.00026799,2]
[426948281,1783049439000,-500.0,0.00026799,2]
[426948279,1783049439000,-500.0,0.00026799,2]
[426948280,1783049439000,-500.0,0.00026799,2]
[426948282,1783049439000,-1340.03,0.00026799,2]
[426948285,1783049439000,-1340.03,0.00026799,2]
[426948283,1783049439000,-1340.03,0.00026799,2]
[426948287,1783049439000,-1340.03,0.00026799,2]
[426948277,1783049439000,-500.0,0.00026799,2]
[426948286,1783049439000,-1340.03,0.00026799,2]
[426948289,1783049439000,-1340.03,0.00026799,2]
[426948288,1783049439000,-1340.03,0.00026799,2]
[426948290,1783049439000,-500.0,0.00026799,2]
[426948292,1783049439000,-500.0,0.00026799,2]
[426948294,1783049439000,-500.0,0.00026799,2]
[426948293,1783049439000,-500.0,0.00026799,2]
[426948295,1783049439000,-500.0,0.00026799,2]
[426948296,1783049439000,-500.0,0.00026799,2]
[426948298,1783049439000,-500.0,0.00026799,2]
[426948300,1783049439000,-500.0,0.00026799,2]
[426948299,1783049439000,-500.0,0.00026799,2]
[426948240,1783049439000,-500.0,0.00026799,2]
[426948291,1783049439000,-500.0,0.00026799,2]
[426948273,1783049439000,-634.13990841,0.00026799,2]
[426948284,1783049439000,-1340.03,0.00026799,2]
[426948272,1783049439000,-500.0,0.00026799,2]
[426948243,1783049439000,-500.0,0.00026799,2]
[426948270,1783049439000,-500.0,0.00026799,2]
[426948245,1783049439000,-272.57475807,0.00026799,2]
[426948244,1783049439000,-500.0,0.00026799,2]
[426948246,1783049439000,-162.84047661,0.00026799,2]
[426948252,1783049439000,-500.0,0.00026799,2]
[426948253,1783049439000,-500.0,0.00026799,2]
[426948248,1783049439000,-500.0,0.00026799,2]
[426948251,1783049439000,-500.0,0.00026799,2]
[426948254,1783049439000,-500.0,0.00026799,2]
[426948250,1783049439000,-500.0,0.00026799,2]
[426948247,1783049439000,-500.0,0.00026799,2]
[426948255,1783049439000,-500.0,0.00026799,2]
[426948257,1783049439000,-500.0,0.00026799,2]
[426948249,1783049439000,-500.0,0.00026799,2]
[426948267,1783049439000,-500.0,0.00026799,2]
[426948269,1783049439000,-507.56614205,0.00026799,2]
[426948256,1783049439000,-500.0,0.00026799,2]
[426948268,1783049439000,-427.89559781,0.00026799,2]
[426948263,1783049439000,-500.0,0.00026799,2]
[426948265,1783049439000,-500.0,0.00026799,2]
[426948264,1783049439000,-500.0,0.00026799,2]
[426948266,1783049439000,-500.0,0.00026799,2]
[426948259,1783049439000,-492.64,0.00026799,2]
[426948260,1783049439000,-500.0,0.00026799,2]
[426948261,1783049439000,-500.0,0.00026799,2]
[426948258,1783049439000,-500.0,0.00026799,2]
[426948262,1783049439000,-447.76331128,0.00026799,2]
[426948340,1783049440000,-268.08348862,0.00026821,2]
[426948343,1783049440000,-6205.82857324,0.00026972,2]
[426948342,1783049440000,-400.52136649,0.00026921,2]
[426948341,1783049440000,-243.8114247,0.00026897,2]
[426948332,1783049440000,-300.0,0.00026799,10]
[426948331,1783049440000,-300.0,0.00026799,10]
[426948337,1783049440000,-271.18,0.000268,30]
[426948338,1783049440000,-164.73773454,0.00026821,2]
[426948336,1783049440000,-1947375.44953894,0.000268,2]
[426948339,1783049440000,-263.71849391,0.00026821,2]
[426948344,1783049440000,-231.096522,0.00026989,2]
[426948335,1783049440000,-45066.97839221,0.000268,2]
[426948350,1783049440000,-213.44043156,0.00026992,2]
[426948357,1783049440000,-447.25566196,0.00026992,2]
[426948351,1783049440000,-189.60919054,0.00026992,2]
[426948346,1783049440000,-500.0,0.00026991,2]
[426948345,1783049440000,-206.69182983,0.00026989,2]
[426948349,1783049440000,-246.68897737,0.00026992,2]
[426948347,1783049440000,-206.16535041,0.00026991,2]
[426948352,1783049440000,-248.93703023,0.00026992,2]
[426948355,1783049440000,-223.21540377,0.00026992,2]
[426948354,1783049440000,-211.98941707,0.00026992,2]
[426948353,1783049440000,-238.93711021,0.00026992,2]
[426948356,1783049440000,-190.84963966,0.00026992,2]
[426948358,1783049440000,-188.27313755,0.00026992,2]
[426948361,1783049440000,-500.0,0.00027,7]
[426948334,1783049440000,-300.0,0.00026799,10]
[426948348,1783049440000,-243.96621433,0.00026992,2]
[426948333,1783049440000,-666.0,0.00026799,2]
[426948301,1783049440000,-582.9167636,0.00026799,2]
[426948329,1783049440000,-300.0,0.00026799,10]
[426948303,1783049440000,-500.0,0.00026799,2]
[426948363,1783049440000,-500.0,0.00027,7]
[426948302,1783049440000,-500.0,0.00026799,2]
[426948305,1783049440000,-500.0,0.00026799,2]
[426948304,1783049440000,-500.0,0.00026799,2]
[426948310,1783049440000,-500.0,0.00026799,2]
[426948311,1783049440000,-500.0,0.00026799,2]
[426948309,1783049440000,-500.0,0.00026799,2]
[426948307,1783049440000,-500.0,0.00026799,2]
[426948308,1783049440000,-500.0,0.00026799,2]
[426948312,1783049440000,-500.0,0.00026799,2]
[426948314,1783049440000,-500.0,0.00026799,2]
[426948313,1783049440000,-500.0,0.00026799,2]
[426948315,1783049440000,-500.0,0.00026799,2]
[426948316,1783049440000,-500.0,0.00026799,2]
[426948317,1783049440000,-500.0,0.00026799,2]
[426948320,1783049440000,-500.0,0.00026799,2]
[426948318,1783049440000,-500.0,0.00026799,2]
[426948319,1783049440000,-500.0,0.00026799,2]
[426948321,1783049440000,-500.0,0.00026799,2]
[426948322,1783049440000,-500.0,0.00026799,2]
[426948323,1783049440000,-500.0,0.00026799,2]
[426948326,1783049440000,-332.67618187,0.00026799,10]
[426948325,1783049440000,-500.0,0.00026799,2]
[426948324,1783049440000,-500.0,0.00026799,2]
[426948327,1783049440000,-300.0,0.00026799,10]
[426948328,1783049440000,-300.0,0.00026799,10]
[426948330,1783049440000,-300.0,0.00026799,10]
[426948359,1783049440000,-500.0,0.00027,7]
[426948306,1783049440000,-500.0,0.00026799,2]
[426948360,1783049440000,-500.0,0.00027,7]
[426948401,1783049440000,-266.72922469,0.0002701,2]
[426948398,1783049440000,-332.18706223,0.0002701,2]
[426948397,1783049440000,-346.27413405,0.0002701,2]
[426948399,1783049440000,-265.89833401,0.0002701,2]
[426948394,1783049440000,-283.5277781,0.0002701,2]
[426948393,1783049440000,-224.2899136,0.0002701,2]
[426948402,1783049440000,-351.40572565,0.0002701,2]
[426948404,1783049440000,-295.29596852,0.0002701,2]
[426948403,1783049440000,-299.02440567,0.0002701,2]
[426948407,1783049440000,-253.31080588,0.0002701,2]
[426948410,1783049440000,-278.12781103,0.0002701,2]
[426948405,1783049440000,-286.72750828,0.0002701,2]
[426948408,1783049440000,-159.89565831,0.0002701,2]
[426948396,1783049440000,-266.92625106,0.0002701,2]
[426948409,1783049440000,-286.30261525,0.0002701,2]
[426948412,1783049440000,-203.55020607,0.0002701,2]
[426948414,1783049440000,-300.76685584,0.0002701,2]
[426948406,1783049440000,-544.70686823,0.0002701,2]
[426948413,1783049440000,-225.24523557,0.0002701,2]
[426948415,1783049440000,-233.02440084,0.0002701,2]
[426948418,1783049440000,-234.01971971,0.0002701,2]
[426948417,1783049440000,-225.00844774,0.0002701,2]
[426948416,1783049440000,-204.27486247,0.0002701,2]
[426948421,1783049440000,-150.0,0.0002705,5]
[426948419,1783049440000,-246.31960083,0.0002701,2]
[426948422,1783049440000,-3605.02169422,0.00027067,2]
[426948362,1783049440000,-500.0,0.00027,7]
[426948420,1783049440000,-249.04650327,0.0002701,2]
[426948411,1783049440000,-273.78501901,0.0002701,2]
[426948395,1783049440000,-330.28489386,0.0002701,2]
[426948423,1783049440000,-157.47249468,0.0002708,2]
[426948392,1783049440000,-170.05658699,0.0002701,2]
[426948400,1783049440000,-224.56933518,0.0002701,2]
[426948366,1783049440000,-500.0,0.00027,7]
[426948365,1783049440000,-500.0,0.00027,7]
[426948367,1783049440000,-500.0,0.00027,7]
[426948369,1783049440000,-500.0,0.00027,7]
[426948372,1783049440000,-500.0,0.00027,7]
[426948371,1783049440000,-500.0,0.00027,7]
[426948375,1783049440000,-500.0,0.00027,7]
[426948368,1783049440000,-500.0,0.00027,7]
[426948374,1783049440000,-500.0,0.00027,7]
[426948370,1783049440000,-500.0,0.00027,7]
[426948373,1783049440000,-548.99,0.00027,7]
[426948377,1783049440000,-206.19546969,0.0002701,2]
[426948376,1783049440000,-500.0,0.00027,7]
[426948364,1783049440000,-500.0,0.00027,7]
[426948379,1783049440000,-233.51695125,0.0002701,2]
[426948389,1783049440000,-336.26381736,0.0002701,2]
[426948391,1783049440000,-487.02112163,0.0002701,2]
[426948390,1783049440000,-224.18442476,0.0002701,2]
[426948388,1783049440000,-211.97012336,0.0002701,2]
[426948378,1783049440000,-200.1642609,0.0002701,2]
[426948383,1783049440000,-187.36942356,0.0002701,2]
[426948385,1783049440000,-153.69655744,0.0002701,2]
[426948384,1783049440000,-219.27448257,0.0002701,2]
[426948386,1783049440000,-222.13856046,0.0002701,2]
[426948380,1783049440000,-188.70387969,0.0002701,2]
[426948382,1783049440000,-260.65872486,0.0002701,2]
[426948381,1783049440000,-204.20753198,0.0002701,2]
[426948387,1783049440000,-153.51031089,0.0002701,2]
[426948458,1783049441000,-1000.0,0.00027397,2]
[426948464,1783049441000,-278.876301,0.00027397,2]
[426948463,1783049441000,-278.876301,0.00027397,2]
[426948461,1783049441000,-1500.0,0.00027397,2]
[426948456,1783049441000,-1000.0,0.00027397,2]
[426948460,1783049441000,-1000.0,0.00027397,2]
[426948462,1783049441000,-151.915036,0.00027397,2]
[426948457,1783049441000,-1000.0,0.00027397,2]
[426948459,1783049441000,-1000.0,0.00027397,2]
[426948455,1783049441000,-1000.0,0.00027397,2]
[426948465,1783049441000,-278.876301,0.00027397,2]
[426948466,1783049441000,-278.876301,0.00027397,2]
[426948476,1783049441000,-278.876301,0.00027397,2]
[426948467,1783049441000,-278.876301,0.00027397,2]
[426948469,1783049441000,-278.876301,0.00027397,2]
[426948474,1783049441000,-278.876301,0.00027397,2]
[426948470,1783049441000,-278.876301,0.00027397,2]
[426948473,1783049441000,-278.876301,0.00027397,2]
[426948477,1783049441000,-278.876301,0.00027397,2]
[426948475,1783049441000,-278.876301,0.00027397,2]
[426948471,1783049441000,-278.876301,0.00027397,2]
[426948472,1783049441000,-278.876301,0.00027397,2]
[426948478,1783049441000,-278.876301,0.00027397,2]
[426948481,1783049441000,-278.876301,0.00027397,2]
[426948454,1783049441000,-1000.0,0.00027397,2]
[426948468,1783049441000,-278.876301,0.00027397,2]
[426948451,1783049441000,-196.57537348,0.00027397,2]
[426948438,1783049441000,-576.50100906,0.00027234,2]
[426948453,1783049441000,-1000.0,0.00027397,2]
[426948425,1783049441000,-154.85485894,0.00027171,2]
[426948424,1783049441000,-256.26050918,0.0002708,2]
[426948426,1783049441000,-243.8114247,0.00027171,2]
[426948427,1783049441000,-260.03445119,0.00027222,7]
[426948428,1783049441000,-150.0,0.00027222,7]
[426948429,1783049441000,-150.0,0.00027222,7]
[426948430,1783049441000,-150.0,0.00027222,7]
[426948431,1783049441000,-150.0,0.00027222,7]
[426948433,1783049441000,-150.0,0.00027222,7]
[426948436,1783049441000,-150.0,0.00027222,7]
[426948440,1783049441000,-297.35859955,0.00027297,2]
[426948432,1783049441000,-150.0,0.00027222,7]
[426948450,1783049441000,-192.06966856,0.00027397,7]
[426948435,1783049441000,-167.35133042,0.00027222,7]
[426948439,1783049441000,-1963.6807634,0.00027272,2]
[426948437,1783049441000,-150.0,0.00027222,7]
[426948441,1783049441000,-221.0955995,0.000273,30]
[426948443,1783049441000,-150.0,0.00027323,7]
[426948442,1783049441000,-1222.8,0.00027318,2]
[426948444,1783049441000,-1944.04710687,0.00027332,2]
[426948446,1783049441000,-500.0,0.00027396,2]
[426948447,1783049441000,-1340.03,0.00027396,2]
[426948445,1783049441000,-200.0,0.00027333,2]
[426948448,1783049441000,-500.0,0.00027396,2]
[426948449,1783049441000,-381.52093219,0.00027396,10]
[426948452,1783049441000,-1000.0,0.00027397,2]
[426948434,1783049441000,-150.0,0.00027222,7]
[426948480,1783049441000,-278.876301,0.00027397,2]
[426948482,1783049441000,-278.87631,0.00027397,2]
[426948491,1783049441000,-266.745055,0.00027397,2]
[426948516,1783049441000,-259.646784,0.00027397,2]
[426948518,1783049441000,-259.646784,0.00027397,2]
[426948513,1783049441000,-259.646784,0.00027397,2]
[426948517,1783049441000,-259.646784,0.00027397,2]
[426948515,1783049441000,-259.646784,0.00027397,2]
[426948521,1783049441000,-259.646784,0.00027397,2]
[426948519,1783049441000,-259.646784,0.00027397,2]
[426948520,1783049441000,-259.646784,0.00027397,2]
[426948522,1783049441000,-259.646779,0.00027397,2]
[426948523,1783049441000,-199.462662,0.00027397,2]
[426948528,1783049441000,-199.462662,0.00027397,2]
[426948524,1783049441000,-199.462662,0.00027397,2]
[426948530,1783049441000,-199.462662,0.00027397,2]
[426948526,1783049441000,-199.462662,0.00027397,2]
[426948529,1783049441000,-199.462662,0.00027397,2]
[426948525,1783049441000,-199.462662,0.00027397,2]
[426948531,1783049441000,-199.462662,0.00027397,2]
[426948532,1783049441000,-199.462662,0.00027397,2]
[426948534,1783049441000,-199.462662,0.00027397,2]
[426948533,1783049441000,-199.462662,0.00027397,2]
[426948535,1783049441000,-199.462662,0.00027397,2]
[426948538,1783049441000,-199.462662,0.00027397,2]
[426948536,1783049441000,-199.462662,0.00027397,2]
[426948537,1783049441000,-199.462662,0.00027397,2]
[426948479,1783049441000,-278.876301,0.00027397,2]
[426948510,1783049441000,-259.646784,0.00027397,2]
[426948514,1783049441000,-259.646784,0.00027397,2]
[426948527,1783049441000,-199.462662,0.00027397,2]
[426948511,1783049441000,-259.646784,0.00027397,2]
[426948483,1783049441000,-266.745055,0.00027397,2]
[426948512,1783049441000,-259.646784,0.00027397,2]
[426948489,1783049441000,-266.745055,0.00027397,2]
[426948484,1783049441000,-266.745055,0.00027397,2]
[426948485,1783049441000,-266.745055,0.00027397,2]
[426948487,1783049441000,-266.745055,0.00027397,2]
[426948488,1783049441000,-266.745055,0.00027397,2]
[426948486,1783049441000,-266.745055,0.00027397,2]
[426948493,1783049441000,-266.745055,0.00027397,2]
[426948494,1783049441000,-266.745055,0.00027397,2]
[426948492,1783049441000,-266.745055,0.00027397,2]
[426948495,1783049441000,-266.745055,0.00027397,2]
[426948497,1783049441000,-266.745055,0.00027397,2]
[426948490,1783049441000,-266.745055,0.00027397,2]
[426948508,1783049441000,-259.646784,0.00027397,2]
[426948509,1783049441000,-259.646784,0.00027397,2]
[426948496,1783049441000,-266.745055,0.00027397,2]
[426948507,1783049441000,-259.646784,0.00027397,2]
[426948506,1783049441000,-259.646784,0.00027397,2]
[426948502,1783049441000,-266.745062,0.00027397,2]
[426948504,1783049441000,-259.646784,0.00027397,2]
[426948498,1783049441000,-266.745055,0.00027397,2]
[426948505,1783049441000,-259.646784,0.00027397,2]
[426948501,1783049441000,-266.745055,0.00027397,2]
[426948500,1783049441000,-266.745055,0.00027397,2]
[426948499,1783049441000,-266.745055,0.00027397,2]
[426948503,1783049441000,-259.646784,0.00027397,2]
[426948581,1783049442000,-3605.02169422,0.00027433,2]
[426948573,1783049442000,-2120.41,0.000274,7]
[426948577,1783049442000,-236.87,0.000274,2]
[426948576,1783049442000,-236.87,0.000274,2]
[426948579,1783049442000,-1771.0,0.00027415,2]
[426948567,1783049442000,-4985.86,0.00027397,10]
[426948574,1783049442000,-236.87,0.000274,2]
[426948571,1783049442000,-302.23777964,0.00027397,2]
[426948572,1783049442000,-453.35666946,0.00027397,2]
[426948570,1783049442000,-256.52588616,0.00027397,7]
[426948580,1783049442000,-150.0,0.00027424,7]
[426948578,1783049442000,-236.87,0.000274,2]
[426948575,1783049442000,-236.87,0.000274,2]
[426948596,1783049442000,-174.88246734,0.00027545,2]
[426948583,1783049442000,-243.8114247,0.00027445,2]
[426948584,1783049442000,-237.32299978,0.00027449,2]
[426948589,1783049442000,-547.42626013,0.00027455,10]
[426948591,1783049442000,-150.0,0.000275,2]
[426948587,1783049442000,-300.0,0.00027455,10]
[426948590,1783049442000,-28496.50007049,0.00027456,2]
[426948585,1783049442000,-300.0,0.00027455,10]
[426948592,1783049442000,-516.74902409,0.000275,7]
[426948595,1783049442000,-1944.04710687,0.0002754,2]
[426948588,1783049442000,-300.0,0.00027455,10]
[426948593,1783049442000,-150.0,0.00027524,7]
[426948568,1783049442000,-227.85402329,0.00027397,2]
[426948582,1783049442000,-522.71413769,0.00027444,2]
[426948566,1783049442000,-5983.03,0.00027397,10]
[426948541,1783049442000,-199.462662,0.00027397,2]
[426948569,1783049442000,-151.11888982,0.00027397,2]
[426948598,1783049442000,-203.76115448,0.00027545,2]
[426948543,1783049442000,-398.571941,0.00027397,2]
[426948539,1783049442000,-199.462662,0.00027397,2]
[426948542,1783049442000,-199.462662,0.00027397,2]
[426948540,1783049442000,-199.462662,0.00027397,2]
[426948544,1783049442000,-398.571941,0.00027397,2]
[426948545,1783049442000,-398.571941,0.00027397,2]
[426948546,1783049442000,-398.571941,0.00027397,2]
[426948547,1783049442000,-398.571941,0.00027397,2]
[426948550,1783049442000,-398.571941,0.00027397,2]
[426948548,1783049442000,-398.571941,0.00027397,2]
[426948552,1783049442000,-398.571941,0.00027397,2]
[426948565,1783049442000,-151.000015,0.00027397,2]
[426948551,1783049442000,-398.571941,0.00027397,2]
[426948556,1783049442000,-398.571941,0.00027397,2]
[426948555,1783049442000,-398.571941,0.00027397,2]
[426948549,1783049442000,-398.571941,0.00027397,2]
[426948553,1783049442000,-398.571941,0.00027397,2]
[426948558,1783049442000,-398.571941,0.00027397,2]
[426948557,1783049442000,-398.571941,0.00027397,2]
[426948559,1783049442000,-398.571941,0.00027397,2]
[426948561,1783049442000,-398.571941,0.00027397,2]
[426948560,1783049442000,-398.571941,0.00027397,2]
[426948564,1783049442000,-151.0,0.00027397,2]
[426948563,1783049442000,-300.0,0.00027397,2]
[426948562,1783049442000,-398.571941,0.00027397,2]
[426948554,1783049442000,-398.571941,0.00027397,2]
[426948599,1783049442000,-166.05559641,0.00027545,2]
[426948607,1783049442000,-178.44976154,0.00027545,2]
[426948601,1783049442000,-228.59372671,0.00027545,2]
[426948637,1783049442000,-670.88349294,0.00027549,2]
[426948635,1783049442000,-423.97883415,0.00027549,2]
[426948636,1783049442000,-446.43080754,0.00027549,2]
[426948638,1783049442000,-376.54627511,0.00027549,2]
[426948640,1783049442000,-775.29,0.0002755,30]
[426948639,1783049442000,-162.79,0.0002755,30]
[426948643,1783049442000,-1740.30607,0.00027553,2]
[426948641,1783049442000,-227.81,0.0002755,30]
[426948644,1783049442000,-1740.30608,0.00027553,2]
[426948645,1783049442000,-1740.30607,0.00027553,2]
[426948649,1783049442000,-150.0,0.00027558,7]
[426948646,1783049442000,-1740.30608,0.00027553,2]
[426948634,1783049442000,-477.87422043,0.00027549,2]
[426948647,1783049442000,-1740.30607,0.00027553,2]
[426948650,1783049442000,-412.39093938,0.00027568,2]
[426948652,1783049442000,-467.0339025,0.00027568,2]
[426948651,1783049442000,-400.3285218,0.00027568,2]
[426948654,1783049442000,-408.41506396,0.00027568,2]
[426948653,1783049442000,-377.40775937,0.00027568,2]
[426948655,1783049442000,-521.31744972,0.00027568,2]
[426948657,1783049442000,-438.54896515,0.00027568,2]
[426948658,1783049442000,-307.39311488,0.00027568,2]
[426948656,1783049442000,-374.73884712,0.00027568,2]
[426948660,1783049442000,-423.94024672,0.00027568,2]
[426948659,1783049442000,-444.27712093,0.00027568,2]
[426948597,1783049442000,-247.89079634,0.00027545,2]
[426948648,1783049442000,-1740.30608,0.00027553,2]
[426948633,1783049442000,-497.87406047,0.00027549,2]
[426948642,1783049442000,-1944.04710687,0.00027551,2]
[426948631,1783049442000,-493.37795473,0.00027549,2]
[426948632,1783049442000,-426.88086311,0.00027549,2]
[426948602,1783049442000,-208.78698868,0.00027545,2]
[426948603,1783049442000,-201.81985557,0.00027545,2]
[426948604,1783049442000,-198.37483562,0.00027545,2]
[426948608,1783049442000,-198.37920873,0.00027545,2]
[426948606,1783049442000,-230.323466,0.00027545,2]
[426948605,1783049442000,-200.03256785,0.00027545,2]
[426948661,1783049442000,-307.02062179,0.00027568,2]
[426948611,1783049442000,-162.36843023,0.00027546,2]
[426948610,1783049442000,-415.55426177,0.00027545,2]
[426948612,1783049442000,-432.3549036,0.00027546,2]
[426948615,1783049442000,-182.73311069,0.00027546,2]
[426948614,1783049442000,-156.73683637,0.00027546,2]
[426948600,1783049442000,-245.03891909,0.00027545,2]
[426948618,1783049442000,-455.70804658,0.00027546,2]
[426948613,1783049442000,-218.89427824,0.00027546,2]
[426948627,1783049442000,-250.00228691,0.00027549,2]
[426948626,1783049442000,-213.11652044,0.00027549,2]
[426948625,1783049442000,-240.1459015,0.00027548,2]
[426948623,1783049442000,-231.73580641,0.00027548,2]
[426948624,1783049442000,-412.33070083,0.00027548,2]
[426948629,1783049442000,-413.38365967,0.00027549,2]
[426948620,1783049442000,-182.60241331,0.00027546,2]
[426948621,1783049442000,-604.47555928,0.00027546,2]
[426948619,1783049442000,-462.19304399,0.00027546,2]
[426948617,1783049442000,-291.00074352,0.00027546,2]
[426948622,1783049442000,-239.84481317,0.00027548,2]
[426948703,1783049443000,-674.0,0.00027694,5]
[426948704,1783049443000,-666.0,0.00027697,5]
[426948702,1783049443000,-683.0,0.0002769,5]
[426948695,1783049443000,-492.63920167,0.00027568,2]
[426948701,1783049443000,-350.0,0.00027666,2]
[426948697,1783049443000,-522.71413769,0.00027593,2]
[426948699,1783049443000,-150.0,0.00027625,7]
[426948700,1783049443000,-150.0,0.00027654,7]
[426948696,1783049443000,-498.09300654,0.00027568,2]
[426948694,1783049443000,-468.03943941,0.00027568,2]
[426948705,1783049443000,-775.29,0.00027711,7]
[426948698,1783049443000,-522.71413769,0.00027623,2]
[426948707,1783049443000,-154.85485902,0.00027719,2]
[426948713,1783049443000,-162.79,0.00027791,7]
[426948708,1783049443000,-243.8114247,0.00027719,2]
[426948709,1783049443000,-150.0,0.00027726,7]
[426948710,1783049443000,-150.0,0.00027726,7]
[426948711,1783049443000,-522.71413769,0.00027743,2]
[426948712,1783049443000,-522.71413769,0.00027784,2]
[426948714,1783049443000,-3605.02169422,0.000278,2]
[426948716,1783049443000,-152.0,0.00027815,5]
[426948717,1783049443000,-530.88,0.00027819,2]
[426948715,1783049443000,-1604.87971452,0.00027806,2]
[426948719,1783049443000,-150.0,0.00027827,7]
[426948718,1783049443000,-150.0,0.00027827,7]
[426948693,1783049443000,-450.01689548,0.00027568,2]
[426948706,1783049443000,-227.81,0.00027711,7]
[426948691,1783049443000,-466.04880167,0.00027568,2]
[426948664,1783049443000,-649.36149551,0.00027568,2]
[426948689,1783049443000,-450.49047113,0.00027568,2]
[426948724,1783049443000,-5020.40807309,0.00027853,7]
[426948663,1783049443000,-448.36884951,0.00027568,2]
[426948665,1783049443000,-448.5798272,0.00027568,2]
[426948667,1783049443000,-567.05555621,0.00027568,2]
[426948666,1783049443000,-340.11317397,0.00027568,2]
[426948669,1783049443000,-533.85250213,0.00027568,2]
[426948668,1783049443000,-495.42734079,0.00027568,2]
[426948670,1783049443000,-519.41120108,0.00027568,2]
[426948671,1783049443000,-498.28059334,0.00027568,2]
[426948672,1783049443000,-531.79666801,0.00027568,2]
[426948675,1783049443000,-527.10858848,0.00027568,2]
[426948673,1783049443000,-449.13867036,0.00027568,2]
[426948678,1783049443000,-168.13190868,0.00027568,2]
[426948676,1783049443000,-379.21838109,0.00027568,2]
[426948677,1783049443000,-598.04881133,0.00027568,2]
[426948674,1783049443000,-533.45844937,0.00027568,2]
[426948679,1783049443000,-590.59193703,0.00027568,2]
[426948681,1783049443000,-272.35343411,0.00027568,2]
[426948680,1783049443000,-573.45501655,0.00027568,2]
[426948682,1783049443000,-506.62161177,0.00027568,2]
[426948684,1783049443000,-572.6052305,0.00027568,2]
[426948685,1783049443000,-556.25562205,0.00027568,2]
[426948683,1783049443000,-319.79131663,0.00027568,2]
[426948688,1783049443000,-407.10041213,0.00027568,2]
[426948690,1783049443000,-451.15028376,0.00027568,2]
[426948686,1783049443000,-547.57003802,0.00027568,2]